[Event "Titled Tuesday Blitz June 22 2021"]
[White "Yanchenko, Roman"]
[Black "Hansen, Eric"]
[WhiteFideId "4137329"]
[BlackFideId "2606771"]
[WhiteElo "2514"]
[BlackElo "2568"]
[Result "1-0"]
[Round "05"]
[TimeControl "180+1"]
[Date "2021.06.22"]
[WhiteClock "0:00:07"]
[BlackClock "0:00:03"]

1. d4 {[%clk 0:03:00]}  Nf6 {[%clk 0:02:54]} 2. c4 {[%clk 0:03:01]}  e6 {[%clk 0:02:44]} 3. Nf3 {[%clk 0:02:59]}  b6 {[%clk 0:02:38]} 4. g3 {[%clk 0:02:59]}  Bb7 {[%clk 0:02:31]} 5. Bg2 {[%clk 0:02:59]}  Be7 {[%clk 0:02:32]} 6. O-O {[%clk 0:02:59]}  O-O {[%clk 0:02:32]} 7. Nc3 {[%clk 0:02:58]}  Ne4 {[%clk 0:02:33]} 8. Bd2 {[%clk 0:02:54]}  Nxd2 {[%clk 0:02:30]} 9. Qxd2 {[%clk 0:02:55]}  d6 {[%clk 0:02:30]} 10. Rad1 {[%clk 0:02:53]}  Nd7 {[%clk 0:02:29]} 11. e4 {[%clk 0:02:52]}  a6 {[%clk 0:02:22]} 12. Rfe1 {[%clk 0:02:51]}  Re8 {[%clk 0:02:19]} 13. h3 {[%clk 0:02:50]}  Bf8 {[%clk 0:02:20]} 14. Kh2 {[%clk 0:02:49]}  g6 {[%clk 0:02:20]} 15. e5 {[%clk 0:02:45]}  Bg7 {[%clk 0:02:18]} 16. Qf4 {[%clk 0:02:33]}  dxe5 {[%clk 0:02:11]} 17. dxe5 {[%clk 0:02:23]}  Qe7 {[%clk 0:01:58]} 18. h4 {[%clk 0:02:17]}  Rad8 {[%clk 0:01:56]} 19. Ne4 {[%clk 0:02:08]}  Bxe4 {[%clk 0:01:54]} 20. Qxe4 {[%clk 0:02:09]}  Qc5 {[%clk 0:01:47]} 21. Qf4 {[%clk 0:01:04]}  h6 {[%clk 0:00:57]} 22. Rd2 {[%clk 0:00:59]}  Qe7 {[%clk 0:00:50]} 23. Red1 {[%clk 0:00:54]}  Nc5 {[%clk 0:00:50]} 24. Nd4 {[%clk 0:00:44]}  Qf8 {[%clk 0:00:25]} 25. Bc6 {[%clk 0:00:19]}  Re7 {[%clk 0:00:17]} 26. b4 {[%clk 0:00:19]}  Nd7 {[%clk 0:00:08]} 27. Nf3 {[%clk 0:00:18]}  Qe8 {[%clk 0:00:02]} 28. Kg2 {[%clk 0:00:16]}  Bf8 {[%clk 0:00:01]} 29. c5 {[%clk 0:00:15]}  bxc5 {[%clk 0:00:01]} 30. bxc5 {[%clk 0:00:15]}  Bg7 {[%clk 0:00:01]} 31. Qa4 {[%clk 0:00:15]}  Qf8 {[%clk 0:00:01]} 32. Rxd7 {[%clk 0:00:14]}  Rexd7 {[%clk 0:00:02]} 33. Rxd7 {[%clk 0:00:13]}  Rxd7 {[%clk 0:00:02]} 34. Bxd7 {[%clk 0:00:14]}  Qxc5 {[%clk 0:00:03]} 35. Qxa6 {[%clk 0:00:14]}  Bxe5 {[%clk 0:00:03]} 36. Qa8+ {[%clk 0:00:15]}  Kg7 {[%clk 0:00:03]} 37. Nxe5 {[%clk 0:00:15]}  Qxe5 {[%clk 0:00:04]} 38. Bc6 {[%clk 0:00:16]}  Qc5 {[%clk 0:00:04]} 39. a4 {[%clk 0:00:16]}  g5 {[%clk 0:00:03]} 40. a5 {[%clk 0:00:16]}  gxh4 {[%clk 0:00:03]} 41. gxh4 {[%clk 0:00:06]}  Qc4 {[%clk 0:00:03]} 42. Bf3 {[%clk 0:00:06]}  e5 {[%clk 0:00:02]} 43. a6 {[%clk 0:00:06]}  f5 {[%clk 0:00:01]} 44. Qc6 {[%clk 0:00:03]}  e4 {[%clk 0:00:01]} 45. Qxc4 {[%clk 0:00:03]}  exf3+ {[%clk 0:00:01]} 46. Kxf3 {[%clk 0:00:04]}  Kf6 {[%clk 0:00:01]} 47. Qc6+ {[%clk 0:00:05]}  Ke5 {[%clk 0:00:02]} 48. a7 {[%clk 0:00:05]}  f4 {[%clk 0:00:02]} 49. a8=Q {[%clk 0:00:06]}  h5 {[%clk 0:00:03]} 50. Qae8+ {[%clk 0:00:07]}  Kf5 {[%clk 0:00:03]} 51. Qcg6# {[%clk 0:00:07]} 1-0


[Site "https://www.chess.com"]

[Event "Titled Tuesday Blitz June 22 2021"]
[White "Zhuravlev, Alexey"]
[Black "Moksh Amit Doshi"]
[WhiteFideId "4164199"]
[BlackFideId "25064967"]
[WhiteElo "2449"]
[BlackElo "2245"]
[Result "1-0"]
[Round "05"]
[TimeControl "180+1"]
[Date "2021.06.22"]
[WhiteClock "0:01:06"]
[BlackClock "0:01:04"]

1. e4 {[%clk 0:02:51]}  c5 {[%clk 0:02:57]} 2. Nc3 {[%clk 0:02:51]}  d6 {[%clk 0:02:56]} 3. f4 {[%clk 0:02:51]}  Nc6 {[%clk 0:02:52]} 4. Nf3 {[%clk 0:02:51]}  g6 {[%clk 0:02:52]} 5. Bc4 {[%clk 0:02:51]}  Bg7 {[%clk 0:02:52]} 6. O-O {[%clk 0:02:51]}  e6 {[%clk 0:02:46]} 7. f5 {[%clk 0:02:50]}  Nge7 {[%clk 0:02:45]} 8. fxe6 {[%clk 0:02:44]}  Bxe6 {[%clk 0:02:19]} 9. Bxe6 {[%clk 0:02:43]}  fxe6 {[%clk 0:02:20]} 10. Ng5 {[%clk 0:02:39]}  Qd7 {[%clk 0:02:21]} 11. d3 {[%clk 0:02:37]}  Ne5 {[%clk 0:02:11]} 12. Bf4 {[%clk 0:01:37]}  N7c6 {[%clk 0:02:09]} 13. Nd5 {[%clk 0:01:21]}  O-O-O {[%clk 0:01:49]} 14. Bxe5 {[%clk 0:01:20]}  Nxe5 {[%clk 0:01:48]} 15. Nf4 {[%clk 0:01:14]}  Rde8 {[%clk 0:01:44]} 16. c3 {[%clk 0:01:14]}  Nc6 {[%clk 0:01:26]} 17. Qg4 {[%clk 0:01:08]}  Ne5 {[%clk 0:01:20]} 18. Qh3 {[%clk 0:01:08]}  h6 {[%clk 0:01:03]} 19. Ngxe6 {[%clk 0:01:08]}  g5 {[%clk 0:01:04]} 20. Nxg7 {[%clk 0:01:06]} 1-0


[Site "https://www.chess.com"]

[Event "Titled Tuesday Blitz June 22 2021"]
[White "Andreikin, Dmitry"]
[Black "Hess, Robert"]
[WhiteFideId "4158814"]
[BlackFideId "2022036"]
[WhiteElo "2782"]
[BlackElo "2557"]
[Result "1-0"]
[Round "06"]
[TimeControl "180+1"]
[Date "2021.06.22"]
[WhiteClock "0:00:19"]
[BlackClock "0:00:02"]

1. e4 {[%clk 0:03:00]}  d6 {[%clk 0:02:56]} 2. d4 {[%clk 0:03:00]}  Nf6 {[%clk 0:02:56]} 3. Nc3 {[%clk 0:03:00]}  c6 {[%clk 0:02:57]} 4. Nf3 {[%clk 0:02:58]}  Bg4 {[%clk 0:02:56]} 5. h3 {[%clk 0:02:54]}  Bh5 {[%clk 0:02:57]} 6. Bd3 {[%clk 0:02:39]}  Qc7 {[%clk 0:02:55]} 7. g4 {[%clk 0:02:32]}  Bg6 {[%clk 0:02:55]} 8. e5 {[%clk 0:02:32]}  Bxd3 {[%clk 0:02:54]} 9. Qxd3 {[%clk 0:02:32]}  dxe5 {[%clk 0:02:42]} 10. dxe5 {[%clk 0:02:31]}  Nfd7 {[%clk 0:02:27]} 11. e6 {[%clk 0:02:30]}  Ne5 {[%clk 0:02:27]} 12. exf7+ {[%clk 0:01:56]}  Nxf7 {[%clk 0:02:28]} 13. Be3 {[%clk 0:01:52]}  g6 {[%clk 0:02:04]} 14. Nd4 {[%clk 0:01:35]}  Qd7 {[%clk 0:02:00]} 15. O-O-O {[%clk 0:01:33]}  Bg7 {[%clk 0:01:40]} 16. Qc4 {[%clk 0:01:27]}  Nd6 {[%clk 0:01:37]} 17. Qb3 {[%clk 0:01:25]}  Bxd4 {[%clk 0:00:38]} 18. Bxd4 {[%clk 0:01:26]}  Rf8 {[%clk 0:00:38]} 19. Rhe1 {[%clk 0:01:26]}  Na6 {[%clk 0:00:33]} 20. Kb1 {[%clk 0:01:07]}  Nc7 {[%clk 0:00:12]} 21. Be5 {[%clk 0:00:55]}  O-O-O {[%clk 0:00:11]} 22. Ne4 {[%clk 0:00:56]}  Nxe4 {[%clk 0:00:07]} 23. Rxd7 {[%clk 0:00:51]}  Rxd7 {[%clk 0:00:08]} 24. Qe3 {[%clk 0:00:35]}  Nd2+ {[%clk 0:00:08]} 25. Kc1 {[%clk 0:00:35]}  Nf3 {[%clk 0:00:07]} 26. Rd1 {[%clk 0:00:23]}  Nxe5 {[%clk 0:00:04]} 27. Qxe5 {[%clk 0:00:21]}  Rxd1+ {[%clk 0:00:03]} 28. Kxd1 {[%clk 0:00:22]}  Kd7 {[%clk 0:00:02]} 29. Qg7 {[%clk 0:00:19]}  Rxf2 {[%clk 0:00:02]} 30. Qd4+ {[%clk 0:00:19]} 1-0


[Site "https://www.chess.com"]

[Event "Titled Tuesday Blitz June 22 2021"]
[White "Bortnyk, Olexandr"]
[Black "Balakrishnan, Praveen"]
[WhiteFideId "14120828"]
[BlackFideId "2064871"]
[WhiteElo "2723"]
[BlackElo "2237"]
[Result "1-0"]
[Round "06"]
[TimeControl "180+1"]
[Date "2021.06.22"]
[WhiteClock "0:00:08"]
[BlackClock "0:00:08"]

1. e4 {[%clk 0:03:00]}  e5 {[%clk 0:02:57]} 2. Bc4 {[%clk 0:03:00]}  Nf6 {[%clk 0:02:53]} 3. d3 {[%clk 0:03:00]}  c6 {[%clk 0:02:52]} 4. Nf3 {[%clk 0:03:00]}  d5 {[%clk 0:02:51]} 5. Bb3 {[%clk 0:03:01]}  Bd6 {[%clk 0:02:49]} 6. Nc3 {[%clk 0:03:00]}  dxe4 {[%clk 0:02:47]} 7. Ng5 {[%clk 0:02:59]}  O-O {[%clk 0:02:47]} 8. Ncxe4 {[%clk 0:02:58]}  Nxe4 {[%clk 0:02:47]} 9. dxe4 {[%clk 0:02:56]}  h6 {[%clk 0:02:30]} 10. Nf3 {[%clk 0:02:13]}  a5 {[%clk 0:02:15]} 11. c3 {[%clk 0:02:11]}  Qe7 {[%clk 0:02:15]} 12. Be3 {[%clk 0:01:55]}  Rd8 {[%clk 0:02:13]} 13. O-O {[%clk 0:01:52]}  Nd7 {[%clk 0:01:59]} 14. Nh4 {[%clk 0:01:34]}  Nf6 {[%clk 0:01:49]} 15. Qf3 {[%clk 0:01:03]}  a4 {[%clk 0:01:38]} 16. Bc2 {[%clk 0:00:55]}  Ng4 {[%clk 0:01:38]} 17. Nf5 {[%clk 0:00:51]}  Bxf5 {[%clk 0:01:37]} 18. exf5 {[%clk 0:00:42]}  Nxh2 {[%clk 0:01:27]} 19. Qe4 {[%clk 0:00:28]}  Nxf1 {[%clk 0:01:26]} 20. f6 {[%clk 0:00:29]}  Qxf6 {[%clk 0:01:26]} 21. Qh7+ {[%clk 0:00:29]}  Kf8 {[%clk 0:01:26]} 22. Rxf1 {[%clk 0:00:30]}  Ke7 {[%clk 0:01:21]} 23. Qe4 {[%clk 0:00:18]}  Qg6 {[%clk 0:01:11]} 24. Qh4+ {[%clk 0:00:18]}  Qf6 {[%clk 0:01:10]} 25. Qe4 {[%clk 0:00:15]}  a3 {[%clk 0:00:59]} 26. b4 {[%clk 0:00:15]}  Kf8 {[%clk 0:00:47]} 27. Qh7 {[%clk 0:00:15]}  e4 {[%clk 0:00:35]} 28. Bxe4 {[%clk 0:00:13]}  Qh4 {[%clk 0:00:24]} 29. f4 {[%clk 0:00:08]}  Re8 {[%clk 0:00:14]} 30. Qh8+ {[%clk 0:00:07]}  Ke7 {[%clk 0:00:15]} 31. Qxg7 {[%clk 0:00:08]}  Rg8 {[%clk 0:00:14]} 32. Qd4 {[%clk 0:00:08]}  Rad8 {[%clk 0:00:13]} 33. Bf3 {[%clk 0:00:07]}  Qf6 {[%clk 0:00:11]} 34. Qb6 {[%clk 0:00:04]}  Qe6 {[%clk 0:00:09]} 35. Bf2 {[%clk 0:00:02]}  Kf8 {[%clk 0:00:08]} 36. Qxb7 {[%clk 0:00:02]}  Qxa2 {[%clk 0:00:08]} 37. Qxc6 {[%clk 0:00:01]}  Qe6 {[%clk 0:00:05]} 38. Bd5 {[%clk 0:00:02]}  Qd7 {[%clk 0:00:06]} 39. Qa6 {[%clk 0:00:01]}  Be7 {[%clk 0:00:05]} 40. Bf3 {[%clk 0:00:01]}  Qd3 {[%clk 0:00:03]} 41. Qxd3 {[%clk 0:00:01]}  Rxd3 {[%clk 0:00:03]} 42. Bd4 {[%clk 0:00:02]}  Rd2 {[%clk 0:00:03]} 43. Ra1 {[%clk 0:00:02]}  a2 {[%clk 0:00:03]} 44. Bd5 {[%clk 0:00:02]}  Rb2 {[%clk 0:00:03]} 45. Rxa2 {[%clk 0:00:03]}  Rgxg2+ {[%clk 0:00:04]} 46. Bxg2 {[%clk 0:00:03]}  Rxa2 {[%clk 0:00:04]} 47. f5 {[%clk 0:00:02]}  Ra1+ {[%clk 0:00:05]} 48. Kf2 {[%clk 0:00:03]}  Bd6 {[%clk 0:00:05]} 49. Bd5 {[%clk 0:00:03]}  Rb1 {[%clk 0:00:05]} 50. Be4 {[%clk 0:00:03]}  Rb2+ {[%clk 0:00:05]} 51. Kf3 {[%clk 0:00:03]}  h5 {[%clk 0:00:06]} 52. Bf6 {[%clk 0:00:03]}  Be7 {[%clk 0:00:05]} 53. Be5 {[%clk 0:00:03]}  h4 {[%clk 0:00:06]} 54. Kg4 {[%clk 0:00:03]}  Rb3 {[%clk 0:00:06]} 55. Bd5 {[%clk 0:00:03]}  Rb1 {[%clk 0:00:06]} 56. f6 {[%clk 0:00:04]}  Bd8 {[%clk 0:00:05]} 57. Kxh4 {[%clk 0:00:03]}  Re1 {[%clk 0:00:05]} 58. Bd4 {[%clk 0:00:03]}  Rf1 {[%clk 0:00:06]} 59. Kg5 {[%clk 0:00:03]}  Rd1 {[%clk 0:00:05]} 60. Kf5 {[%clk 0:00:04]}  Rf1+ {[%clk 0:00:05]} 61. Kg5 {[%clk 0:00:04]}  Rd1 {[%clk 0:00:05]} 62. b5 {[%clk 0:00:04]}  Rb1 {[%clk 0:00:05]} 63. Bc4 {[%clk 0:00:02]}  Rb2 {[%clk 0:00:05]} 64. Kf5 {[%clk 0:00:02]}  Rb1 {[%clk 0:00:05]} 65. Ke5 {[%clk 0:00:02]}  Re1+ {[%clk 0:00:04]} 66. Kd6 {[%clk 0:00:03]}  Rd1 {[%clk 0:00:05]} 67. Kc6 {[%clk 0:00:03]}  Rb1 {[%clk 0:00:02]} 68. b6 {[%clk 0:00:03]}  Ke8 {[%clk 0:00:02]} 69. b7 {[%clk 0:00:03]}  Ba5 {[%clk 0:00:02]} 70. Bb5 {[%clk 0:00:03]}  Bc7 {[%clk 0:00:02]} 71. Kxc7+ {[%clk 0:00:03]}  Rxb5 {[%clk 0:00:02]} 72. b8=Q+ {[%clk 0:00:03]}  Rxb8 {[%clk 0:00:03]} 73. Kxb8 {[%clk 0:00:04]}  Kd7 {[%clk 0:00:04]} 74. Kb7 {[%clk 0:00:05]}  Ke6 {[%clk 0:00:04]} 75. c4 {[%clk 0:00:05]}  Kd6 {[%clk 0:00:05]} 76. c5+ {[%clk 0:00:06]}  Kd5 {[%clk 0:00:05]} 77. c6 {[%clk 0:00:07]}  Kxd4 {[%clk 0:00:06]} 78. c7 {[%clk 0:00:07]}  Ke5 {[%clk 0:00:07]} 79. c8=Q {[%clk 0:00:08]}  Kxf6 {[%clk 0:00:08]} 80. Qg4 {[%clk 0:00:08]} 1-0


[Site "https://www.chess.com"]

[Event "Titled Tuesday Blitz June 22 2021"]
[White "Firat, Burak"]
[Black "Ibrahimli, Murad"]
[WhiteFideId "6305881"]
[BlackFideId "13410229"]
[WhiteElo "2531"]
[BlackElo "2109"]
[Result "1-0"]
[Round "06"]
[TimeControl "180+1"]
[Date "2021.06.22"]
[WhiteClock "0:00:14"]
[BlackClock "0:00:07"]

1. e4 {[%clk 0:03:00]}  c5 {[%clk 0:02:59]} 2. Nf3 {[%clk 0:03:00]}  d6 {[%clk 0:02:58]} 3. d4 {[%clk 0:03:00]}  cxd4 {[%clk 0:02:59]} 4. Nxd4 {[%clk 0:03:01]}  Nf6 {[%clk 0:02:59]} 5. Nc3 {[%clk 0:03:02]}  a6 {[%clk 0:02:59]} 6. h4 {[%clk 0:03:02]}  Nc6 {[%clk 0:02:58]} 7. Nxc6 {[%clk 0:02:59]}  bxc6 {[%clk 0:02:56]} 8. h5 {[%clk 0:03:00]}  h6 {[%clk 0:02:56]} 9. Qd3 {[%clk 0:03:00]}  Nd7 {[%clk 0:02:53]} 10. Qg3 {[%clk 0:02:46]}  Rb8 {[%clk 0:02:50]} 11. b3 {[%clk 0:02:45]}  e5 {[%clk 0:02:47]} 12. Bb2 {[%clk 0:02:42]}  Qg5 {[%clk 0:02:45]} 13. Qf3 {[%clk 0:02:09]}  Qf6 {[%clk 0:02:43]} 14. Qe3 {[%clk 0:02:03]}  Nc5 {[%clk 0:02:23]} 15. O-O-O {[%clk 0:02:00]}  Be7 {[%clk 0:02:22]} 16. Kb1 {[%clk 0:01:58]}  a5 {[%clk 0:02:07]} 17. g3 {[%clk 0:01:51]}  Bg4 {[%clk 0:02:04]} 18. Be2 {[%clk 0:01:48]}  Bxe2 {[%clk 0:02:04]} 19. Qxe2 {[%clk 0:01:49]}  a4 {[%clk 0:01:58]} 20. f4 {[%clk 0:01:49]}  axb3 {[%clk 0:01:57]} 21. axb3 {[%clk 0:01:50]}  O-O {[%clk 0:01:57]} 22. Qg4 {[%clk 0:01:30]}  Qe6 {[%clk 0:01:57]} 23. Qxe6 {[%clk 0:01:25]}  fxe6 {[%clk 0:01:32]} 24. fxe5 {[%clk 0:01:17]}  d5 {[%clk 0:01:32]} 25. Rhf1 {[%clk 0:01:18]}  Rxf1 {[%clk 0:01:29]} 26. Rxf1 {[%clk 0:01:19]}  d4 {[%clk 0:01:29]} 27. Ne2 {[%clk 0:01:18]}  d3 {[%clk 0:01:29]} 28. Nd4 {[%clk 0:01:17]}  Nxe4 {[%clk 0:01:24]} 29. Rd1 {[%clk 0:00:51]}  dxc2+ {[%clk 0:00:51]} 30. Kxc2 {[%clk 0:00:52]}  Rf8 {[%clk 0:00:50]} 31. Nxe6 {[%clk 0:00:39]}  Rf2+ {[%clk 0:00:50]} 32. Kb1 {[%clk 0:00:31]}  Nd2+ {[%clk 0:00:37]} 33. Ka2 {[%clk 0:00:30]}  Nf3 {[%clk 0:00:37]} 34. Rd7 {[%clk 0:00:27]}  Kf7 {[%clk 0:00:32]} 35. Nf4 {[%clk 0:00:14]}  Nxe5 {[%clk 0:00:23]} 36. Rc7 {[%clk 0:00:14]}  Ke8 {[%clk 0:00:20]} 37. b4 {[%clk 0:00:14]}  Nc4 {[%clk 0:00:19]} 38. Kb3 {[%clk 0:00:15]}  Nxb2 {[%clk 0:00:19]} 39. Ne6 {[%clk 0:00:15]}  Bf6 {[%clk 0:00:18]} 40. Nxg7+ {[%clk 0:00:14]}  Bxg7 {[%clk 0:00:18]} 41. Rxg7 {[%clk 0:00:15]}  Nd3 {[%clk 0:00:18]} 42. Rg6 {[%clk 0:00:15]}  Rf3 {[%clk 0:00:16]} 43. Ka4 {[%clk 0:00:13]}  Kd7 {[%clk 0:00:12]} 44. g4 {[%clk 0:00:12]}  Kc7 {[%clk 0:00:12]} 45. Rxh6 {[%clk 0:00:11]}  Kb6 {[%clk 0:00:12]} 46. b5 {[%clk 0:00:12]}  Nc5+ {[%clk 0:00:11]} 47. Kb4 {[%clk 0:00:12]}  Rf4+ {[%clk 0:00:11]} 48. Kc3 {[%clk 0:00:12]}  Kxb5 {[%clk 0:00:12]} 49. g5 {[%clk 0:00:12]}  Ne4+ {[%clk 0:00:13]} 50. Kd3 {[%clk 0:00:11]}  Nxg5 {[%clk 0:00:13]} 51. Rg6 {[%clk 0:00:12]}  Nf3 {[%clk 0:00:13]} 52. Ke3 {[%clk 0:00:12]}  Rf7 {[%clk 0:00:14]} 53. h6 {[%clk 0:00:12]}  Ne5 {[%clk 0:00:14]} 54. Rg7 {[%clk 0:00:13]}  Rf1 {[%clk 0:00:07]} 55. Rg5 {[%clk 0:00:12]}  Re1+ {[%clk 0:00:05]} 56. Kf2 {[%clk 0:00:11]}  Re4 {[%clk 0:00:06]} 57. h7 {[%clk 0:00:11]}  Rh4 {[%clk 0:00:06]} 58. Rxe5+ {[%clk 0:00:11]}  c5 {[%clk 0:00:07]} 59. Re7 {[%clk 0:00:12]}  Kb4 {[%clk 0:00:07]} 60. Kg3 {[%clk 0:00:13]}  Rh1 {[%clk 0:00:07]} 61. Re4+ {[%clk 0:00:13]}  c4 {[%clk 0:00:07]} 62. Rh4 {[%clk 0:00:14]} 1-0


[Site "https://www.chess.com"]

[Event "Titled Tuesday Blitz June 22 2021"]
[White "Gabrielian, Artur"]
[Black "Dubov, Daniil"]
[WhiteFideId "4131002"]
[BlackFideId "24126055"]
[WhiteElo "2539"]
[BlackElo "2722"]
[Result "0-1"]
[Round "06"]
[TimeControl "180+1"]
[Date "2021.06.22"]
[WhiteClock "0:00:11"]
[BlackClock "0:00:05"]

1. e4 {[%clk 0:03:00]}  e5 {[%clk 0:03:00]} 2. Nc3 {[%clk 0:02:59]}  Nf6 {[%clk 0:02:59]} 3. g3 {[%clk 0:03:00]}  d5 {[%clk 0:02:57]} 4. exd5 {[%clk 0:03:00]}  Nxd5 {[%clk 0:02:58]} 5. Bg2 {[%clk 0:03:01]}  Nf6 {[%clk 0:02:59]} 6. Nf3 {[%clk 0:03:00]}  Nc6 {[%clk 0:02:59]} 7. d3 {[%clk 0:03:01]}  Bd6 {[%clk 0:03:00]} 8. O-O {[%clk 0:03:01]}  h6 {[%clk 0:03:00]} 9. Re1 {[%clk 0:03:01]}  O-O {[%clk 0:03:00]} 10. a3 {[%clk 0:03:02]}  Re8 {[%clk 0:02:57]} 11. b4 {[%clk 0:03:02]}  a6 {[%clk 0:02:54]} 12. Bb2 {[%clk 0:03:02]}  Bf5 {[%clk 0:02:54]} 13. h3 {[%clk 0:02:56]}  Qd7 {[%clk 0:02:49]} 14. Kh2 {[%clk 0:02:56]}  Rad8 {[%clk 0:02:48]} 15. Nd2 {[%clk 0:02:55]}  Nd4 {[%clk 0:02:45]} 16. Nce4 {[%clk 0:02:51]}  Nxe4 {[%clk 0:02:43]} 17. Nxe4 {[%clk 0:02:51]}  Bf8 {[%clk 0:02:43]} 18. Nc5 {[%clk 0:02:30]}  Bxc5 {[%clk 0:02:40]} 19. bxc5 {[%clk 0:02:31]}  Nc6 {[%clk 0:02:30]} 20. Qh5 {[%clk 0:02:20]}  Bg6 {[%clk 0:02:19]} 21. Qh4 {[%clk 0:02:20]}  Re6 {[%clk 0:02:16]} 22. Re3 {[%clk 0:02:08]}  Rde8 {[%clk 0:02:10]} 23. Rae1 {[%clk 0:02:07]}  Kh7 {[%clk 0:02:09]} 24. f4 {[%clk 0:02:01]}  exf4 {[%clk 0:02:07]} 25. Qxf4 {[%clk 0:02:01]}  Rxe3 {[%clk 0:02:02]} 26. Rxe3 {[%clk 0:02:00]}  Rxe3 {[%clk 0:02:02]} 27. Qxe3 {[%clk 0:02:01]}  f6 {[%clk 0:02:03]} 28. d4 {[%clk 0:01:51]}  Ne7 {[%clk 0:01:46]} 29. c4 {[%clk 0:01:27]}  c6 {[%clk 0:01:45]} 30. Bc3 {[%clk 0:01:18]}  Bf7 {[%clk 0:01:41]} 31. Qd3+ {[%clk 0:01:16]}  Kg8 {[%clk 0:01:40]} 32. Bd2 {[%clk 0:00:53]}  Qe6 {[%clk 0:01:39]} 33. Qb3 {[%clk 0:00:53]}  Qxc4 {[%clk 0:01:35]} 34. Qxb7 {[%clk 0:00:52]}  Qe2 {[%clk 0:01:35]} 35. Qb8+ {[%clk 0:00:40]}  Kh7 {[%clk 0:01:33]} 36. Qb1+ {[%clk 0:00:40]}  Kg8 {[%clk 0:01:10]} 37. Qb8+ {[%clk 0:00:40]}  Kh7 {[%clk 0:01:09]} 38. Qb1+ {[%clk 0:00:40]}  Bg6 {[%clk 0:00:57]} 39. Qe1 {[%clk 0:00:40]}  Qxe1 {[%clk 0:00:57]} 40. Bxe1 {[%clk 0:00:40]}  Bd3 {[%clk 0:00:57]} 41. g4 {[%clk 0:00:39]}  Bc4 {[%clk 0:00:57]} 42. Kg3 {[%clk 0:00:39]}  Nd5 {[%clk 0:00:57]} 43. Ba5 {[%clk 0:00:38]}  g6 {[%clk 0:00:55]} 44. h4 {[%clk 0:00:38]}  Kg7 {[%clk 0:00:55]} 45. Be4 {[%clk 0:00:38]}  Kf7 {[%clk 0:00:54]} 46. h5 {[%clk 0:00:38]}  g5 {[%clk 0:00:54]} 47. Bg6+ {[%clk 0:00:36]}  Ke6 {[%clk 0:00:51]} 48. Bf5+ {[%clk 0:00:36]}  Ke7 {[%clk 0:00:50]} 49. Bd2 {[%clk 0:00:33]}  Ke8 {[%clk 0:00:46]} 50. Be4 {[%clk 0:00:33]}  Ne7 {[%clk 0:00:45]} 51. Ba5 {[%clk 0:00:32]}  Kd7 {[%clk 0:00:44]} 52. Kf2 {[%clk 0:00:28]}  Be6 {[%clk 0:00:32]} 53. Bf3 {[%clk 0:00:28]}  f5 {[%clk 0:00:26]} 54. gxf5 {[%clk 0:00:29]}  Nxf5 {[%clk 0:00:27]} 55. Bc3 {[%clk 0:00:29]}  Bc4 {[%clk 0:00:16]} 56. Bg4 {[%clk 0:00:28]}  Bd3 {[%clk 0:00:16]} 57. d5 {[%clk 0:00:26]}  cxd5 {[%clk 0:00:17]} 58. Bg7 {[%clk 0:00:26]}  Kc6 {[%clk 0:00:17]} 59. Bxf5 {[%clk 0:00:26]}  Bxf5 {[%clk 0:00:17]} 60. Bxh6 {[%clk 0:00:27]}  Kxc5 {[%clk 0:00:15]} 61. Bxg5 {[%clk 0:00:27]}  Kc4 {[%clk 0:00:15]} 62. Ke3 {[%clk 0:00:26]}  d4+ {[%clk 0:00:15]} 63. Kd2 {[%clk 0:00:27]}  d3 {[%clk 0:00:14]} 64. Bf6 {[%clk 0:00:27]}  Be4 {[%clk 0:00:10]} 65. h6 {[%clk 0:00:27]}  Bh7 {[%clk 0:00:10]} 66. Bg7 {[%clk 0:00:27]}  Bg6 {[%clk 0:00:10]} 67. Ke3 {[%clk 0:00:27]}  Bh7 {[%clk 0:00:11]} 68. Bf6 {[%clk 0:00:24]}  Kb3 {[%clk 0:00:11]} 69. Kd2 {[%clk 0:00:20]}  Kxa3 {[%clk 0:00:11]} 70. Kc3 {[%clk 0:00:20]}  a5 {[%clk 0:00:10]} 71. Bd8 {[%clk 0:00:19]}  a4 {[%clk 0:00:10]} 72. Bf6 {[%clk 0:00:17]}  Ka2 {[%clk 0:00:10]} 73. Bg5 {[%clk 0:00:17]}  Bg6 {[%clk 0:00:07]} 74. Bf4 {[%clk 0:00:16]}  Bh7 {[%clk 0:00:07]} 75. Bg5 {[%clk 0:00:16]}  a3 {[%clk 0:00:06]} 76. Bc1 {[%clk 0:00:16]}  Bg6 {[%clk 0:00:06]} 77. Kb4 {[%clk 0:00:11]}  Kb1 {[%clk 0:00:05]} 0-1


[Site "https://www.chess.com"]